{"text_format":"1","workbook":"xlsx","n_sheets":1,"sheets":["Groepen"],"not_rendered":{"charts":0,"images":0,"macros":1,"external_links":1,"defined_names":2,"comments":0,"pivot_tables":0},"unopened":[],"bounds":{"document_bytes":16777216,"sheet_cells":100000,"rows_first":2000,"rows_last":500,"rows_between":2000,"halvings":0,"cell_chars":16384,"cell_head_chars":4096},"cells_cut":0,"cells_raw":0,"read":"whole","date_system":"1900"}

{"sheet":"Groepen","index":0,"n_rows":1052,"n_cols":7,"rows_kept":1052,"cut":false,"hidden":false,"merged":[]}
["Groep (6)","Groepsnaam (90)",null,null,"Controle Groep"]
["00.000","2020-2024 - Juli 2021",null,null,{"$f":"LEFT(A2,3)","v":"00."},{"$f":"RIGHT(E2)","v":"."},{"$f":"IF(F2=\".\",1,0)","v":1}]
["01.001","Zang.Kan.Harzers",null,null,{"$f":"LEFT(A3,3)","v":"01."},{"$f":"RIGHT(E3)","v":"."},{"$f":"IF(F3=\".\",1,0)","v":1}]
["01.002","Zang.Kan.Waterslagers",null,null,"01.",".",1]
["01.003","Zang.Kan.Timbrado",null,null,"01.",".",1]
["02.001","KL.Kan.Lipochroom wit dominant",null,null,"02.",".",1]
["02.002","KL.Kan.Lipochroom wit",null,null,"02.",".",1]
["02.003","KL.Kan.Lipochroom albino",null,null,"02.",".",1]
["02.005","KL.Kan.Lipochroom geel intensief",null,null,"02.",".",1]
["02.007","KL.Kan.Lipochroom lutino intensief",null,null,"02.",".",1]
["02.009","KL.Kan.Lipochroom geel schimmel",null,null,"02.",".",1]
["02.011","KL.Kan.Lipochroom lutino schimmel",null,null,"02.",".",1]
["02.013","KL.Kan.Lipochroom mozaiek geel type 1",null,null,"02.",".",1]
["02.015","KL.Kan.Lipochroom mozaiek geel type 2",null,null,"02.",".",1]
["02.017","KL.Kan.Lipochroom rood intensief",null,null,"02.",".",1]
["02.019","KL.Kan.Lipochroom rubino intensief",null,null,"02.",".",1]
["02.021","KL.Kan.Lipochroom rood schimmel",null,null,"02.",".",1]
["02.023","KL.Kan.Lipochroom rubino schimmel",null,null,"02.",".",1]
["02.025","KL.Kan.Lipochroom mozaiek rood type 1",null,null,"02.",".",1]
["02.027","KL.Kan.Lipochroom mozaiek rood type 2",null,null,"02.",".",1]
["02.029","KL.Kan.Lipochroom roodsnavel Urucum",null,null,"02.",".",1]
["02.030","KL.Kan.Lipochroom geelsnavel Urucum",null,null,"02.",".",1]
["02.031","KL.Kan.Melanine zwart wit",null,null,"02.",".",1]
["02.033","KL.Kan.Melanine zwart geel",null,null,"02.",".",1]
["02.034","KL.Kan.Melanine zwart rood",null,null,"02.",".",1]
["02.035","KL.Kan.Melanine zwart geel mozaiek type 1",null,null,"02.",".",1]
["02.036","KL.Kan.Melanine zwart geel mozaiek type 2",null,null,"02.",".",1]
["02.041","KL.Kan.Melanine zwart rood mozaiek type 1",null,null,"02.",".",1]
["02.042","KL.Kan.Melanine zwart rood mozaiek type 2",null,null,"02.",".",1]
["02.043","KL.Kan.Melanine bruin wit",null,null,"02.",".",1]
["02.045","KL.Kan.Melanine bruin geel",null,null,"02.",".",1]
["02.047","KL.Kan.Melanine bruin rood",null,null,"02.",".",1]
["02.049","KL.Kan.Melanine bruin geel mozaiek type 1",null,null,"02.",".",1]
["02.050","KL.Kan.Melanine bruin geel mozaiek type 2",null,null,"02.",".",1]
["02.051","KL.Kan.Melanine bruin rood mozaiek type 1",null,null,"02.",".",1]
["02.053","KL.Kan.Melanine bruin rood mozaiek type 2",null,null,"02.",".",1]
["02.057","KL.Kan.Melanine agaat wit",null,null,"02.",".",1]
["02.059","KL.Kan.Melanine agaat geel",null,null,"02.",".",1]
["02.061","KL.Kan.Melanine agaat rood",null,null,"02.",".",1]
["02.063","KL.Kan.Melanine agaat geel mozaiek type 1",null,null,"02.",".",1]
["02.065","KL.Kan.Melanine agaat geel mozaiek type 2",null,null,"02.",".",1]
["02.067","KL.Kan.Melanine agaat rood mozaiek type 1",null,null,"02.",".",1]
["02.069","KL.Kan.Melanine agaat rood mozaiek type 2",null,null,"02.",".",1]
["02.071","KL.Kan.Melanine isabel wit",null,null,"02.",".",1]
["02.073","KL.Kan.Melanine isabel geel",null,null,"02.",".",1]
["02.075","KL.Kan.Melanine isabel rood",null,null,"02.",".",1]
["02.077","KL.Kan.Melanine isabel geel mozaiek type 1",null,null,"02.",".",1]
["02.079","KL.Kan.Melanine isabel geel mozaiek type 2",null,null,"02.",".",1]
["02.081","KL.Kan.Melanine isabel rood mozaiek type 1",null,null,"02.",".",1]
["02.083","KL.Kan.Melanine isabel rood mozaiek type 2",null,null,"02.",".",1]
["02.085","KL.Kan.Melanine zwartpastel wit",null,null,"02.",".",1]
["02.087","KL.Kan.Melanine zwartpastel geel",null,null,"02.",".",1]
["02.089","KL.Kan.Melanine zwartpastel rood",null,null,"02.",".",1]
["02.091","KL.Kan.Melanine zwartpastel geel mozaiek type 1",null,null,"02.",".",1]
["02.093","KL.Kan.Melanine zwartpastel geel mozaiek type 2",null,null,"02.",".",1]
["02.095","KL.Kan.Melanine zwartpastel rood mozaiek type 1",null,null,"02.",".",1]
["02.097","KL.Kan.Melanine zwartpastel rood mozaiek type 2",null,null,"02.",".",1]
["02.099","KL.Kan.Melanine bruinpastel wit",null,null,"02.",".",1]
["02.101","KL.Kan.Melanine bruinpastel geel",null,null,"02.",".",1]
["02.103","KL.Kan.Melanine bruinpastel rood",null,null,"02.",".",1]
["02.105","KL.Kan.Melanine bruinpastel geel mozaiek type 1",null,null,"02.",".",1]
["02.107","KL.Kan.Melanine bruinpastel geel mozaiek type 2",null,null,"02.",".",1]
["02.109","KL.Kan.Melanine bruinpastel rood mozaiek type 1",null,null,"02.",".",1]
["02.111","KL.Kan.Melanine bruinpastel rood mozaiek type 2",null,null,"02.",".",1]
["02.113","KL.Kan.Melanine agaatpastel wit",null,null,"02.",".",1]
["02.115","KL.Kan.Melanine agaatpastel geel",null,null,"02.",".",1]
["02.117","KL.Kan.Melanine agaatpastel rood",null,null,{"$f":"LEFT(A67,3)","v":"02."},{"$f":"RIGHT(E67)","v":"."},{"$f":"IF(F67=\".\",1,0)","v":1}]
["02.119","KL.Kan.Melanine agaatpastel geel mozaiek type 1",null,null,"02.",".",1]
["02.121","KL.Kan.Melanine agaatpastel geel mozaiek type 2",null,null,"02.",".",1]
["02.123","KL.Kan.Melanine agaatpastel rood mozaiek type 1",null,null,"02.",".",1]
["02.124","KL.Kan.Melanine agaatpastel rood mozaiek type 2",null,null,"02.",".",1]
["02.125","KL.Kan.Melanine isabelpastel wit",null,null,"02.",".",1]
["02.127","KL.Kan.Melanine isabelpastel geel",null,null,"02.",".",1]
["02.129","KL.Kan.Melanine isabelpastel rood",null,null,"02.",".",1]
["02.131","KL.Kan.Melanine isabelpastel geel mozaiek type 1",null,null,"02.",".",1]
["02.133","KL.Kan.Melanine isabelpastel geel mozaiek type 2",null,null,"02.",".",1]
["02.135","KL.Kan.Melanine isabelpastel rood mozaiek type 1",null,null,"02.",".",1]
["02.137","KL.Kan.Melanine isabelpastel rood mozaiek type 2",null,null,"02.",".",1]
["02.139","KL.Kan.Melanine zwart grijsvleugel wit",null,null,"02.",".",1]
["02.141","KL.Kan.Melanine zwart grijsvleugel geel",null,null,"02.",".",1]
["02.143","KL.Kan.Melanine zwart grijsvleugel rood",null,null,"02.",".",1]
["02.144","KL.Kan.Melanine zwart grijsvleugel geel mozaiek",null,null,"02.",".",1]
["02.146","KL.Kan.Melanine zwart grijsvleugel rood mozaiek",null,null,"02.",".",1]
["02.149","KL.Kan.Melanine zwartjaspis wit",null,null,"02.",".",1]
["02.151","KL.Kan.Melanine zwartjaspis geel",null,null,"02.",".",1]
["02.155","KL.Kan.Melanine zwartjaspis rood",null,null,"02.",".",1]
["02.157","KL.Kan.Melanine zwartjaspis geel mozaiek",null,null,"02.",".",1]
["02.161","KL.Kan.Melanine zwartjaspis rood mozaiek",null,null,"02.",".",1]
["02.165","KL.Kan.Melanine bruinjaspis wit",null,null,"02.",".",1]
["02.167","KL.Kan.Melanine bruinjaspis geel",null,null,"02.",".",1]
["02.169","KL.Kan.Melanine bruinjaspis rood",null,null,"02.",".",1]
["02.171","KL.Kan.Melanine bruinjaspis geel mozaiek",null,null,"02.",".",1]
["02.175","KL.Kan.Melanine bruinjaspis rood mozaiek",null,null,"02.",".",1]
["02.179","KL.Kan.Melanine agaatjaspis wit",null,null,"02.",".",1]
["02.181","KL.Kan.Melanine agaatjaspis geel",null,null,"02.",".",1]
["02.183","KL.Kan.Melanine agaatjaspis rood",null,null,"02.",".",1]
["02.184","KL.Kan.Melanine agaatjaspis geel mozaiek",null,null,"02.",".",1]
["02.186","KL.Kan.Melanine agaatjaspis rood mozaiek",null,null,"02.",".",1]
["02.187","KL.Kan.Melanine isabeljaspis wit",null,null,"02.",".",1]
["02.188","KL.Kan.Melanine isabeljaspis geel",null,null,"02.",".",1]
["02.189","KL.Kan.Melanine isabeljaspis rood",null,null,"02.",".",1]
["02.190","KL.Kan.Melanine isabeljaspis geel mozaiek",null,null,"02.",".",1]
["02.191","KL.Kan.Melanine isabeljaspis rood mozaiek",null,null,"02.",".",1]
["02.193","KL.Kan.Melanine zwartopaal wit",null,null,"02.",".",1]
["02.195","KL.Kan.Melanine zwartopaal geel",null,null,"02.",".",1]
["02.197","KL.Kan.Melanine zwartopaal rood",null,null,"02.",".",1]
["02.199","KL.Kan.Melanine zwartopaal geel mozaiek",null,null,"02.",".",1]
["02.203","KL.Kan.Melanine zwartopaal rood mozaiek",null,null,"02.",".",1]
["02.207","KL.Kan.Melanine bruinopaal wit",null,null,"02.",".",1]
["02.209","KL.Kan.Melanine bruinopaal geel",null,null,"02.",".",1]
["02.211","KL.Kan.Melanine bruinopaal rood",null,null,"02.",".",1]
["02.213","KL.Kan.Melanine bruinopaal geel mozaiek",null,null,"02.",".",1]
["02.217","KL.Kan.Melanine bruinopaal rood mozaiek",null,null,"02.",".",1]
["02.221","KL.Kan.Melanine agaatopaal wit",null,null,"02.",".",1]
["02.223","KL.Kan.Melanine agaatopaal geel",null,null,"02.",".",1]
["02.225","KL.Kan.Melanine agaatopaal rood",null,null,"02.",".",1]
["02.227","KL.Kan.Melanine agaatopaal geel mozaiek type 1",null,null,"02.",".",1]
["02.229","KL.Kan.Melanine agaatopaal geel mozaiek type 2",null,null,"02.",".",1]
["02.231","KL.Kan.Melanine agaatopaal rood mozaiek type 1",null,null,"02.",".",1]
["02.233","KL.Kan.Melanine agaatopaal rood mozaiek type 2",null,null,"02.",".",1]
["02.235","KL.Kan.Melanine isabelopaal wit",null,null,"02.",".",1]
["02.237","KL.Kan.Melanine isabelopaal geel",null,null,"02.",".",1]
["02.239","KL.Kan.Melanine isabelopaal rood",null,null,"02.",".",1]
["02.241","KL.Kan.Melanine isabelopaal geel mozaiek",null,null,"02.",".",1]
["02.245","KL.Kan.Melanine isabelopaal rood mozaiek",null,null,"02.",".",1]
["02.249","KL.Kan.Melanine zwartmogno wit",null,null,"02.",".",1]
["02.251","KL.Kan.Melanine zwartmogno geel",null,null,"02.",".",1]
["02.253","KL.Kan.Melanine zwartmogno rood",null,null,"02.",".",1]
["02.255","KL.Kan.Melanine zwartmogno geel mozaiek",null,null,"02.",".",1]
["02.259","KL.Kan.Melanine zwartmogno rood mozaiek",null,null,"02.",".",1]
["02.263","KL.Kan.Melanine bruinmogno wit",null,null,{"$f":"LEFT(A131,3)","v":"02."},{"$f":"RIGHT(E131)","v":"."},{"$f":"IF(F131=\".\",1,0)","v":1}]
["02.265","KL.Kan.Melanine bruinmogno geel",null,null,"02.",".",1]
["02.267","KL.Kan.Melanine bruinmogno rood",null,null,"02.",".",1]
["02.269","KL.Kan.Melanine bruinmogno geel mozaiek",null,null,"02.",".",1]
["02.273","KL.Kan.Melanine bruinmogno rood mozaiek",null,null,"02.",".",1]
["02.277","KL.Kan.Melanine phaeo wit",null,null,"02.",".",1]
["02.279","KL.Kan.Melanine phaeo geel",null,null,"02.",".",1]
["02.281","KL.Kan.Melanine phaeo rood",null,null,"02.",".",1]
["02.283","KL.Kan.Melanine phaeo geel mozaiek type 1",null,null,"02.",".",1]
["02.284","KL.Kan.Melanine phaeo geel mozaiek type 2",null,null,"02.",".",1]
["02.285","KL.Kan.Melanine phaeo rood mozaiek type 1",null,null,"02.",".",1]
["02.287","KL.Kan.Melanine phaeo rood mozaiek type 2",null,null,"02.",".",1]
["02.289","KL.Kan.Melanine satinet wit",null,null,"02.",".",1]
["02.291","KL.Kan.Melanine satinet geel",null,null,"02.",".",1]
["02.293","KL.Kan.Melanine satinet rood",null,null,"02.",".",1]
["02.295","KL.Kan.Melanine satinet geel mozaiek type 1",null,null,"02.",".",1]
["02.297","KL.Kan.Melanine satinet geel mozaiek type 2",null,null,"02.",".",1]
["02.299","KL.Kan.Melanine satinet rood mozaiek type 1",null,null,"02.",".",1]
["02.301","KL.Kan.Melanine satinet rood mozaiek type 2",null,null,"02.",".",1]
["02.303","KL.Kan.Melanine zwarttopaas wit",null,null,"02.",".",1]
["02.305","KL.Kan.Melanine zwarttopaas geel",null,null,"02.",".",1]
["02.307","KL.Kan.Melanine zwarttopaas rood",null,null,"02.",".",1]
["02.309","KL.Kan.Melanine zwarttopaas geel mozaiek",null,null,"02.",".",1]
["02.313","KL.Kan.Melanine zwarttopaas rood mozaiek",null,null,"02.",".",1]
["02.317","KL.Kan.Melanine bruintopaas wit",null,null,"02.",".",1]
["02.319","KL.Kan.Melanine bruintopaas geel",null,null,"02.",".",1]
["02.321","KL.Kan.Melanine bruintopaas rood",null,null,"02.",".",1]
["02.323","KL.Kan.Melanine bruintopaas geel mozaiek",null,null,"02.",".",1]
["02.325","KL.Kan.Melanine bruintopaas rood mozaiek",null,null,"02.",".",1]
["02.327","KL.Kan.Melanine agaattopaas wit",null,null,"02.",".",1]
["02.331","KL.Kan.Melanine agaattopaas geel",null,null,"02.",".",1]
["02.333","KL.Kan.Melanine agaattopaas rood",null,null,"02.",".",1]
["02.335","KL.Kan.Melanine agaattopaas geel mozaiek type 1",null,null,"02.",".",1]
["02.337","KL.Kan.Melanine agaattopaas geel mozaiek type 2",null,null,"02.",".",1]
["02.339","KL.Kan.Melanine agaattopaas rood mozaiek type 1",null,null,"02.",".",1]
["02.341","KL.Kan.Melanine agaattopaas rood mozaiek type 2",null,null,"02.",".",1]
["02.343","KL.Kan.Melanine isabeltopaas wit",null,null,"02.",".",1]
["02.345","KL.Kan.Melanine isabeltopaas geel",null,null,"02.",".",1]
["02.347","KL.Kan.Melanine isabeltopaas rood",null,null,"02.",".",1]
["02.349","KL.Kan.Melanine isabeltopaas geel mozaiek",null,null,"02.",".",1]
["02.353","KL.Kan.Melanine isabeltopaas rood mozaiek",null,null,"02.",".",1]
["02.357","KL.Kan.Melanine zwarteumo wit",null,null,"02.",".",1]
["02.359","KL.Kan.Melanine zwarteumo geel",null,null,"02.",".",1]
["02.361","KL.Kan.Melanine zwarteumo rood",null,null,"02.",".",1]
["02.363","KL.Kan.Melanine zwarteumo geel mozaiek",null,null,"02.",".",1]
["02.367","KL.Kan.Melanine zwarteumo rood mozaiek",null,null,"02.",".",1]
["02.371","KL.Kan.Melanine bruineumo wit",null,null,"02.",".",1]
["02.373","KL.Kan.Melanine bruineumo geel",null,null,"02.",".",1]
["02.375","KL.Kan.Melanine bruineumo rood",null,null,"02.",".",1]
["02.377","KL.Kan.Melanine bruineumo geel mozaiek",null,null,"02.",".",1]
["02.381","KL.Kan.Melanine bruineumo rood mozaiek",null,null,"02.",".",1]
["02.385","KL.Kan.Melanine agaateumo wit",null,null,"02.",".",1]
["02.387","KL.Kan.Melanine agaateumo geel",null,null,"02.",".",1]
["02.389","KL.Kan.Melanine agaateumo rood",null,null,"02.",".",1]
["02.391","KL.Kan.Melanine agaateumo geel mozaiek type 1",null,null,"02.",".",1]
["02.393","KL.Kan.Melanine agaateumo geel mozaiek type 2",null,null,"02.",".",1]
["02.395","KL.Kan.Melanine agaateumo rood mozaiek type 1",null,null,"02.",".",1]
["02.397","KL.Kan.Melanine agaateumo rood mozaiek type 2",null,null,"02.",".",1]
["02.399","KL.Kan.Melanine zwartonyx wit",null,null,"02.",".",1]
["02.401","KL.Kan.Melanine zwartonyx geel",null,null,"02.",".",1]
["02.403","KL.Kan.Melanine zwartonyx rood",null,null,"02.",".",1]
["02.405","KL.Kan.Melanine zwartonyx geel mozaiek",null,null,"02.",".",1]
["02.409","KL.Kan.Melanine zwartonyx rood mozaiek",null,null,"02.",".",1]
["02.413","KL.Kan.Melanine bruinonyx wit",null,null,"02.",".",1]
["02.415","KL.Kan.Melanine bruinonyx geel",null,null,{"$f":"LEFT(A195,3)","v":"02."},{"$f":"RIGHT(E195)","v":"."},{"$f":"IF(F195=\".\",1,0)","v":1}]
["02.417","KL.Kan.Melanine bruinonyx rood",null,null,"02.",".",1]
["02.419","KL.Kan.Melanine bruinonyx geel mozaiek",null,null,"02.",".",1]
["02.423","KL.Kan.Melanine bruinonyx rood mozaiek",null,null,"02.",".",1]
["02.427","KL.Kan.Melanine agaatonyx wit",null,null,"02.",".",1]
["02.429","KL.Kan.Melanine agaatonyx geel",null,null,"02.",".",1]
["02.431","KL.Kan.Melanine agaatonyx rood",null,null,"02.",".",1]
["02.433","KL.Kan.Melanine agaatonyx geel mozaiek",null,null,"02.",".",1]
["02.447","KL.Kan.Melanine agaatonyx rood mozaiek",null,null,"02.",".",1]
["02.453","KL.Kan.Melanine zwartkobalt wit",null,null,"02.",".",1]
["02.455","KL.Kan.Melanine zwartkobalt geel",null,null,"02.",".",1]
["02.457","KL.Kan.Melanine zwartkobalt rood",null,null,"02.",".",1]
["02.459","KL.Kan.Melanine zwartkobalt geel mozaiek",null,null,"02.",".",1]
["02.463","KL.Kan.Melanine zwartkobalt rood mozaiek",null,null,"02.",".",1]
["02.477","KL.Kan.Melanine bruinkobalt wit",null,null,"02.",".",1]
["02.479","KL.Kan.Melanine bruinkobalt geel",null,null,"02.",".",1]
["02.481","KL.Kan.Melanine bruinkobalt rood",null,null,"02.",".",1]
["02.483","KL.Kan.Melanine bruinkobalt geel mozaiek",null,null,"02.",".",1]
["02.487","KL.Kan.Melanine bruinkobalt rood mozaiek",null,null,"02.",".",1]
["02.491","KL.Kan.Melanine agaatkobalt wit",null,null,"02.",".",1]
["02.493","KL.Kan.Melanine agaatkobalt geel",null,null,"02.",".",1]
["02.495","KL.Kan.Melanine agaatkobalt rood",null,null,"02.",".",1]
["02.497","KL.Kan.Melanine agaatkobalt geel mozaiek",null,null,"02.",".",1]
["02.501","KL.Kan.Melanine agaatkobalt rood mozaiek",null,null,"02.",".",1]
["02.505","KL.Kan.Melanine isabelkobalt wit",null,null,"02.",".",1]
["02.507","KL.Kan.Melanine isabelkobalt geel",null,null,"02.",".",1]
["02.509","KL.Kan.Melanine isabelkobalt rood",null,null,"02.",".",1]
["02.511","KL.Kan.Melanine isabelkobalt geel mozaiek",null,null,"02.",".",1]
["02.515","KL.Kan.Melanine isabelkobalt rood mozaiek",null,null,"02.",".",1]
["02.519","KL.Kan.Melanine niet gestandaardiseerd met kobalt",null,null,"02.",".",1]
["02.530","KL.Kan.Niet erkende kleurslagen",null,null,"02.",".",1]
["04.001","Post.Kan.Arriciato gigante italiano (AGI) lipochroom",null,null,"04.",".",1]
["04.003","Post.Kan.Arriciato gigante italiano (AGI) melanine",null,null,"04.",".",1]
["04.005","Post.Kan.Arriciato gigante italiano (AGI) bont",null,null,"04.",".",1]
["04.007","Post.Kan.Arriciato gigante italiano (AGI) alle witfactorigen",null,null,"04.",".",1]
["04.009","Post.Kan.Parijse frise lipochroom",null,null,"04.",".",1]
["04.011","Post.Kan.Parijse frise melanine",null,null,"04.",".",1]
["04.013","Post.Kan.Parijse frise bont",null,null,"04.",".",1]
["04.015","Post.Kan.Parijse frise alle witfactorigen",null,null,"04.",".",1]
["04.017","Post.Kan.Padovan gladkop lipochroom",null,null,"04.",".",1]
["04.019","Post.Kan.Padovan gladkop melanine",null,null,"04.",".",1]
["04.021","Post.Kan.Padovan gladkop bont",null,null,"04.",".",1]
["04.023","Post.Kan.Padovan gladkop alle witfactorigen",null,null,"04.",".",1]
["04.025","Post.Kan.Padovan gekuifd lipochroom",null,null,"04.",".",1]
["04.027","Post.Kan.Padovan gekuifd melanine",null,null,"04.",".",1]
["04.029","Post.Kan.Padovan gekuifd bont",null,null,"04.",".",1]
["04.031","Post.Kan.Padovan gekuifd alle witfactorigen",null,null,"04.",".",1]
["04.033","Post.Kan.Mehringer lipochroom",null,null,"04.",".",1]
["04.035","Post.Kan.Mehringer melanine",null,null,"04.",".",1]
["04.037","Post.Kan.Mehringer bont",null,null,"04.",".",1]
["04.039","Post.Kan.Mehringer alle witfactorigen",null,null,"04.",".",1]
["04.041","Post.Kan.Noordhollandse frise lipochroom",null,null,"04.",".",1]
["04.043","Post.Kan.Noordhollandse frise melanine",null,null,"04.",".",1]
["04.045","Post.Kan.Noordhollandse frise bont",null,null,"04.",".",1]
["04.047","Post.Kan.Noordhollandse frise alle witfactorigen",null,null,"04.",".",1]
["04.049","Post.Kan.Fiorino gladkop lipochroom",null,null,"04.",".",1]
["04.051","Post.Kan.Fiorino gladkop melanine",null,null,"04.",".",1]
["04.053","Post.Kan.Fiorino gladkop bont",null,null,"04.",".",1]
["04.055","Post.Kan.Fiorino gladkop alle witfactorigen",null,null,"04.",".",1]
["04.057","Post.Kan.Fiorino gekuifd lipochroom",null,null,"04.",".",1]
["04.059","Post.Kan.Fiorino gekuifd melanine",null,null,"04.",".",1]
["04.061","Post.Kan.Fiorino gekuifd bont",null,null,"04.",".",1]
["04.063","Post.Kan.Fiorino gekuifd alle witfactorigen",null,null,"04.",".",1]
["04.065","Post.Kan.Zwitserse frise lipochroom",null,null,"04.",".",1]
["04.067","Post.Kan.Zwitserse frise melanine",null,null,{"$f":"LEFT(A259,3)","v":"04."},{"$f":"RIGHT(E259)","v":"."},{"$f":"IF(F259=\".\",1,0)","v":1}]
["04.069","Post.Kan.Zwitserse frise bont",null,null,"04.",".",1]
["04.071","Post.Kan.Zwitserse frise alle witfactorigen",null,null,"04.",".",1]
["04.073","Post.Kan.Zuidhollandse frise lipochroom",null,null,"04.",".",1]
["04.075","Post.Kan.Zuidhollandse frise melanine",null,null,"04.",".",1]
["04.077","Post.Kan.Zuidhollandse frise bont",null,null,"04.",".",1]
["04.079","Post.Kan.Zuidhollandse frise alle witfactorigen",null,null,"04.",".",1]
["04.081","Post.Kan.Gibber Italicus lipochroom",null,null,"04.",".",1]
["04.083","Post.Kan.Gibber Italicus melanine",null,null,"04.",".",1]
["04.085","Post.Kan.Gibber Italicus bont",null,null,"04.",".",1]
["04.087","Post.Kan.Gibber Italicus alle witfactorigen",null,null,"04.",".",1]
["04.089","Post.Kan.Giboso Espanol lipochroom",null,null,"04.",".",1]
["04.091","Post.Kan.Giboso Espanol melanine",null,null,"04.",".",1]
["04.093","Post.Kan.Giboso Espanol bont",null,null,"04.",".",1]
["04.095","Post.Kan.Giboso Espanol alle witfactorigen",null,null,"04.",".",1]
["04.097","Post.Kan.Melado Tinerfeno lipochroom",null,null,"04.",".",1]
["04.099","Post.Kan.Melado Tinerfeno melanine",null,null,"04.",".",1]
["04.101","Post.Kan.Melado Tinerfeno bont",null,null,"04.",".",1]
["04.103","Post.Kan.Melado Tinerfeno alle witfactorigen",null,null,"04.",".",1]
["04.104","Post.Kan.Rogetto lipochroom",null,null,"04.",".",1]
["04.105","Post.Kan.Rogetto melanine",null,null,"04.",".",1]
["04.106","Post.Kan.Rogetto bont",null,null,"04.",".",1]
["04.107","Post.Kan.Rogetto alle witfactorigen",null,null,"04.",".",1]
["04.108","Post.Kan.Yorkshire lipochroom intensief",null,null,"04.",".",1]
["04.109","Post.Kan.Yorkshire lipochroom schimmel",null,null,"04.",".",1]
["04.110","Post.Kan.Yorkshire melanine intensief",null,null,"04.",".",1]
["04.111","Post.Kan.Yorkshire melanine schimmel",null,null,"04.",".",1]
["04.112","Post.Kan.Yorkshire bont intensief",null,null,"04.",".",1]
["04.113","Post.Kan.Yorkshire bont schimmel",null,null,"04.",".",1]
["04.114","Post.Kan.Yorkshire alle witfactorigen",null,null,"04.",".",1]
["04.115","Post.Kan.Lancashire gladkop geel lipochroom intensief",null,null,"04.",".",1]
["04.116","Post.Kan.Lancashire gladkop geel lipochroom schimmel",null,null,"04.",".",1]
["04.117","Post.Kan.Lancashire gladkop wit",null,null,"04.",".",1]
["04.118","Post.Kan.Lancashire gekuifd geel lipochroom intensief",null,null,"04.",".",1]
["04.119","Post.Kan.Lancashire gekuifd geel lipochroom schimmel",null,null,"04.",".",1]
["04.120","Post.Kan.Lancashire gekuifd wit",null,null,"04.",".",1]
["04.121","Post.Kan.Berner lipochroom",null,null,"04.",".",1]
["04.123","Post.Kan.Berner melanine",null,null,"04.",".",1]
["04.125","Post.Kan.Berner bont",null,null,"04.",".",1]
["04.127","Post.Kan.Berner alle witfactorigen",null,null,"04.",".",1]
["04.129","Post.Kan.Rheinlander gladkop geel lipochroom",null,null,"04.",".",1]
["04.131","Post.Kan.Rheinlander gladkop rood lipochroom",null,null,"04.",".",1]
["04.133","Post.Kan.Rheinlander gladkop wit",null,null,"04.",".",1]
["04.135","Post.Kan.Rheinlander gekuifd geel lipochroom",null,null,"04.",".",1]
["04.137","Post.Kan.Rheinlander gekuifd rood lipochroom",null,null,"04.",".",1]
["04.139","Post.Kan.Rheinlander gekuifd wit",null,null,"04.",".",1]
["04.141","Post.Kan.Llarget Espanol lipochroom",null,null,"04.",".",1]
["04.143","Post.Kan.Llarget Espanol melanine",null,null,"04.",".",1]
["04.145","Post.Kan.Llarget Espanol bont",null,null,"04.",".",1]
["04.147","Post.Kan.Llarget Espanol alle witfactorigen",null,null,"04.",".",1]
["04.149","Post.Kan.Belgische Bult lipochroom",null,null,"04.",".",1]
["04.151","Post.Kan.Belgische Bult melanine",null,null,"04.",".",1]
["04.153","Post.Kan.Belgische Bult bont",null,null,"04.",".",1]
["04.155","Post.Kan.Belgische Bult alle witfactorigen",null,null,"04.",".",1]
["04.157","Post.Kan.Munchener lipochroom",null,null,"04.",".",1]
["04.159","Post.Kan.Munchener melanine",null,null,"04.",".",1]
["04.161","Post.Kan.Munchener bont",null,null,"04.",".",1]
["04.163","Post.Kan.Munchener alle witfactorigen",null,null,"04.",".",1]
["04.165","Post.Kan.Scotch Fancy lipochroom",null,null,"04.",".",1]
["04.167","Post.Kan.Scotch Fancy melanine",null,null,"04.",".",1]
["04.169","Post.Kan.Scotch Fancy bont",null,null,"04.",".",1]
["04.171","Post.Kan.Scotch Fancy alle witfactorigen",null,null,"04.",".",1]
["04.173","Post.Kan.Japan Hoso lipochroom",null,null,"04.",".",1]
["04.175","Post.Kan.Japan Hoso melanine",null,null,"04.",".",1]
["04.177","Post.Kan.Japan Hoso bont",null,null,{"$f":"LEFT(A323,3)","v":"04."},{"$f":"RIGHT(E323)","v":"."},{"$f":"IF(F323=\".\",1,0)","v":1}]
["04.179","Post.Kan.Japan Hoso alle witfactorigen",null,null,"04.",".",1]
["04.181","Post.Kan.Raza Espanol lipochroom",null,null,"04.",".",1]
["04.183","Post.Kan.Raza Espanol melanine",null,null,"04.",".",1]
["04.185","Post.Kan.Raza Espanol bont",null,null,"04.",".",1]
["04.187","Post.Kan.Raza Espanol alle witfactorigen",null,null,"04.",".",1]
["04.189","Post.Kan.Border lipochroom",null,null,"04.",".",1]
["04.191","Post.Kan.Border melanine",null,null,"04.",".",1]
["04.193","Post.Kan.Border bont",null,null,"04.",".",1]
["04.195","Post.Kan.Border alle witfactorigen",null,null,"04.",".",1]
["04.197","Post.Kan.Fife Fancy lipochroom",null,null,"04.",".",1]
["04.199","Post.Kan.Fife Fancy melanine",null,null,"04.",".",1]
["04.201","Post.Kan.Fife Fancy bont",null,null,"04.",".",1]
["04.203","Post.Kan.Fife Fancy alle witfactorigen",null,null,"04.",".",1]
["04.205","Post.Kan.Norwich lipochroom",null,null,"04.",".",1]
["04.207","Post.Kan.Norwich melanine",null,null,"04.",".",1]
["04.209","Post.Kan.Norwich bont",null,null,"04.",".",1]
["04.211","Post.Kan.Norwich alle witfactorigen",null,null,"04.",".",1]
["04.213","Post.Kan.Irish Fancy lipochroom",null,null,"04.",".",1]
["04.215","Post.Kan.Irish Fancy melanine",null,null,"04.",".",1]
["04.217","Post.Kan.Irish Fancy bont",null,null,"04.",".",1]
["04.219","Post.Kan.Irish Fancy alle witfactorigen",null,null,"04.",".",1]
["04.221","Post.Kan.Gloster Consort lipochroom",null,null,"04.",".",1]
["04.223","Post.Kan.Gloster Consort melanine",null,null,"04.",".",1]
["04.225","Post.Kan.Gloster Consort bont",null,null,"04.",".",1]
["04.227","Post.Kan.Gloster Consort alle witfactorigen",null,null,"04.",".",1]
["04.229","Post.Kan.Gloster Corona lipochroom",null,null,"04.",".",1]
["04.231","Post.Kan.Gloster Corona melanine",null,null,"04.",".",1]
["04.233","Post.Kan.Gloster Corona bont",null,null,"04.",".",1]
["04.235","Post.Kan.Gloster Corona alle witfactorigen",null,null,"04.",".",1]
["04.237","Post.Kan.Crest-bred gladkop lipochroom",null,null,"04.",".",1]
["04.239","Post.Kan.Crest-bred gladkop melanine",null,null,"04.",".",1]
["04.241","Post.Kan.Crest-bred gladkop bont",null,null,"04.",".",1]
["04.243","Post.Kan.Crest-Bred gladkop alle witfactorigen",null,null,"04.",".",1]
["04.245","Post.Kan.Crested gekuifd lipochroom",null,null,"04.",".",1]
["04.247","Post.Kan.Crested gekuifd melanine",null,null,"04.",".",1]
["04.249","Post.Kan.Crested gekuifd bont",null,null,"04.",".",1]
["04.251","Post.Kan.Crested gekuifd alle witfactorigen",null,null,"04.",".",1]
["04.253","Post.Kan.Arlequim Portugais gladkop type 1",null,null,"04.",".",1]
["04.254","Post.Kan.Arlequim Portugais gladkop type 2",null,null,"04.",".",1]
["04.255","Post.Kan.Arlequim Portugais gekuifd type 1",null,null,"04.",".",1]
["04.256","Post.Kan.Arlequim Portugais gekuifd type 2",null,null,"04.",".",1]
["04.257","Post.Kan.Duitse kuif lipochroom wit",null,null,"04.",".",1]
["04.259","Post.Kan.Duitse kuif lipochroom geel",null,null,"04.",".",1]
["04.261","Post.Kan.Duitse kuif lipochroom rood",null,null,"04.",".",1]
["04.263","Post.Kan.Duitse kuif melanine klassiek",null,null,"04.",".",1]
["04.265","Post.Kan.Duitse kuif melanine klassiek & mutatie & overige",null,null,"04.",".",1]
["04.267","Post.Kan.Lizard wit",null,null,"04.",".",1]
["04.269","Post.Kan.Lizard geel",null,null,"04.",".",1]
["04.271","Post.Kan.Lizard rood",null,null,"04.",".",1]
["04.273","Post.Kan.Columbus Fancy gladkop lipochroom geel",null,null,"04.",".",1]
["04.275","Post.Kan.Columbus Fancy gladkop melanine",null,null,"04.",".",1]
["04.277","Post.Kan.Columbus Fancy gladkop bont",null,null,"04.",".",1]
["04.279","Post.Kan.Columbus Fancy gladkop alle witfactorigen",null,null,"04.",".",1]
["04.281","Post.Kan.Columbus Fancy gekuifd lipochroom geel",null,null,"04.",".",1]
["04.283","Post.Kan.Columbus Fancy gekuifd melanine",null,null,"04.",".",1]
["04.285","Post.Kan.Columbus Fancy gekuifd bont",null,null,"04.",".",1]
["04.287","Post.Kan.Columbus Fancy gekuifd alle witfactorigen",null,null,"04.",".",1]
["04.289","Post.Kan.Stafford Canary gladkop rood lipochroom",null,null,"04.",".",1]
["04.291","Post.Kan.Stafford Canary gladkop rood melanine",null,null,"04.",".",1]
["04.293","Post.Kan.Stafford Canary gladkop rood bont",null,null,"04.",".",1]
["04.295","Post.Kan.Stafford Canary gekuifd rood lipochroom",null,null,"04.",".",1]
["04.297","Post.Kan.Stafford Canary gekuifd rood melanine",null,null,"04.",".",1]
["04.299","Post.Kan.Stafford Canary gekuifd rood bont",null,null,"04.",".",1]
["04.301","Post.Kan.Vectis geel",null,null,{"$f":"LEFT(A387,3)","v":"04."},{"$f":"RIGHT(E387)","v":"."},{"$f":"IF(F387=\".\",1,0)","v":1}]
["04.303","Post.Kan.Vectis rood",null,null,"04.",".",1]
["04.305","Post.Kan.Vectis wit",null,null,"04.",".",1]
["04.307","Post.Kan.London Fancy geel",null,null,"04.",".",1]
["04.309","Post.Kan.Makige lipochroom",null,null,"04.",".",1]
["04.311","Post.Kan.Makige melanine",null,null,"04.",".",1]
["04.313","Post.Kan.Makige bont",null,null,"04.",".",1]
["04.315","Post.Kan.Makige alle witfactorigen",null,null,"04.",".",1]
["04.317","Post.Kan.Niet erkende rassen",null,null,"04.",".",1]
["05.001","Zebravinken grijs",null,null,"05.",".",1]
["05.002","Zebravinken bruin",null,null,"05.",".",1]
["05.003","Zebravinken bleekrug grijs",null,null,"05.",".",1]
["05.004","Zebravinken bleekrug bruin",null,null,"05.",".",1]
["05.005","Zebravinken masker grijs",null,null,"05.",".",1]
["05.006","Zebravinken masker bruin",null,null,"05.",".",1]
["05.007","Zebravinken SL ino grijs",null,null,"05.",".",1]
["05.008","Zebravinken SL ino bruin",null,null,"05.",".",1]
["05.009","Zebravinken wit",null,null,"05.",".",1]
["05.010","Zebravinken bont",null,null,"05.",".",1]
["05.011","Zebravinken getekend",null,null,"05.",".",1]
["05.012","Zebravinken oranjeborst",null,null,"05.",".",1]
["05.013","Zebravinken oranjeborst zwartborst",null,null,"05.",".",1]
["05.014","Zebravinken oranjeborst blackface",null,null,"05.",".",1]
["05.015","Zebravinken oranjeborst zwartborst blackface",null,null,"05.",".",1]
["05.020","Zebravinken zwartborst",null,null,"05.",".",1]
["05.021","Zebravinken zwartborst blackface",null,null,"05.",".",1]
["05.022","Zebravinken blackface",null,null,"05.",".",1]
["05.023","Zebravinken zwartwang",null,null,"05.",".",1]
["05.024","Zebravinken zwartwang zwartborst",null,null,"05.",".",1]
["05.025","Zebravinken zwartwang blackface",null,null,"05.",".",1]
["05.026","Zebravinken zwartwang zwartborst blackface",null,null,"05.",".",1]
["05.027","Zebravinken pastel",null,null,"05.",".",1]
["05.028","Zebravinken eumo",null,null,"05.",".",1]
["05.030","Zebravinken topaas",null,null,"05.",".",1]
["05.031","Zebravinken witborst",null,null,"05.",".",1]
["05.032","Zebravinken isabel",null,null,"05.",".",1]
["05.033","Zebravinken wang",null,null,"05.",".",1]
["05.034","Zebravinken bleekwang",null,null,"05.",".",1]
["05.035","Zebravinken gezoomd",null,null,"05.",".",1]
["05.036","Zebravinken geelsnavel",null,null,"05.",".",1]
["05.037","Zebravinken bleeksnavel alle kleurslagen",null,null,"05.",".",1]
["05.038","Zebravinken gekuifd",null,null,"05.",".",1]
["05.045","Zebravink nieuwe mutatie combinaties",null,null,"05.",".",1]
["05.050","Timor zebravink wildkleur",null,null,"05.",".",1]
["05.051","Timor zebravink mutant",null,null,"05.",".",1]
["06.001","Japanse meeuwen volkleur serie",null,null,"06.",".",1]
["06.002","Japanse meeuwen grijs serie",null,null,"06.",".",1]
["06.003","Japanse meeuwen pastel serie",null,null,"06.",".",1]
["06.004","Japanse meeuw SL ino serie",null,null,"06.",".",1]
["06.005","Japanse meeuwen bleekvleugel serie",null,null,"06.",".",1]
["06.006","Japanse meeuwen gepareld serie",null,null,"06.",".",1]
["06.007","Japanse meeuwen getekende witkop serie",null,null,"06.",".",1]
["06.008","Japanse meeuwen getekende met oogstreep/oogring",null,null,"06.",".",1]
["06.009","Japanse meeuwen getekende met kap",null,null,"06.",".",1]
["06.010","Japanse meeuwen overige getekende",null,null,"06.",".",1]
["06.011","Japanse meeuw wit en albino",null,null,"06.",".",1]
["06.012","Japanse meeuwen gekuifd alle kleurslagen",null,null,"06.",".",1]
["07.001","Zilverbek wildkleur",null,null,"07.",".",1]
["07.002","Zilverbek mutant enkelvoudig",null,null,"07.",".",1]
["07.003","Zilverbek pastel combinaties",null,null,"07.",".",1]
["07.004","Zilverbek opaal combinaties",null,null,"07.",".",1]
["07.005","Zilverbek agaat combinaties",null,null,"07.",".",1]
["07.006","Zilverbek donkerbuik combinaties",null,null,"07.",".",1]
["07.007","Zilverbek nieuwe mutatie combinaties geelstaart",null,null,"07.",".",1]
["07.008","Zilverbek  SL ino combinaties",null,null,{"$f":"LEFT(A451,3)","v":"07."},{"$f":"RIGHT(E451)","v":"."},{"$f":"IF(F451=\".\",1,0)","v":1}]
["07.009","Loodbek wildkleur",null,null,"07.",".",1]
["07.010","Loodbek mutant enkelvoudig",null,null,"07.",".",1]
["07.011","Loodbek pastel combinaties",null,null,"07.",".",1]
["07.012","Loodbek opaal combinaties",null,null,"07.",".",1]
["07.013","Loodbek bruin mutant combinaties",null,null,"07.",".",1]
["07.014","Loodbek nieuwe mutatie combinaties donkerbuik",null,null,"07.",".",1]
["07.015","Loodbek donkerstuit",null,null,"07.",".",1]
["07.016","Loodbek nieuwe mutatie combinaties geelstaart",null,null,"07.",".",1]
["07.017","Loodbek SL ino combinaties",null,null,"07.",".",1]
["07.018","Parelhalsamadine wildkleur",null,null,"07.",".",1]
["07.019","Parelhalsamadine nieuwe mutaties en combinaties",null,null,"07.",".",1]
["08.001","Rijstvogel wildkleur (Cites lijst B)",null,null,"08.",".",1]
["08.002","Rijstvogel mutant enkelvoudig",null,null,"08.",".",1]
["08.003","Rijstvogel agaat mutant combinaties",null,null,"08.",".",1]
["08.004","Rijstvogel pastel combinaties",null,null,"08.",".",1]
["08.005","Rijstvogel opaal combinaties",null,null,"08.",".",1]
["08.006","Rijstvogel topaas combinaties",null,null,"08.",".",1]
["08.007","Rijstvogel nieuwe mutatie combinaties overige kleurslagen",null,null,"08.",".",1]
["08.008","Rijstvogel Wit en Albino",null,null,"08.",".",1]
["08.009","Timor rijstvogel wildkleur",null,null,"08.",".",1]
["09.001","Gouldamadine zwartkop groen",null,null,"09.",".",1]
["09.002","Gouldamadine roodkop groen",null,null,"09.",".",1]
["09.003","Gouldamadine oranjekop groen",null,null,"09.",".",1]
["09.004","Gouldamadine groen wit- en lilaborst mutanten",null,null,"09.",".",1]
["09.005","Gouldamadine cinnamon mutanten combinatie",null,null,"09.",".",1]
["09.006","Gouldamadine cinnamon wit- en lilaborst mutanten combinatie",null,null,"09.",".",1]
["09.007","Gouldamadine groen EF pastel mutanten combinatie",null,null,"09.",".",1]
["09.008","Gouldamadine groen EF pastel wit- en lilaborst mutanten combinatie",null,null,"09.",".",1]
["09.009","Gouldamadine groen DF pastel mutanten combinatie",null,null,"09.",".",1]
["09.010","Gouldamadine geel mutanten combinatie",null,null,"09.",".",1]
["09.011","Gouldamadine geel wit- en lilaborst mutanten combinatie",null,null,"09.",".",1]
["09.012","Gouldamadine aqua mutant combinatie",null,null,"09.",".",1]
["09.013","Gouldamadine aqua wit- en lilaborst mutanten combinatie",null,null,"09.",".",1]
["09.014","Gouldamadine blauw",null,null,"09.",".",1]
["09.015","Gouldamadine blauw wit- en lilaborst",null,null,"09.",".",1]
["09.016","Gouldamadine blauw EF pastel",null,null,"09.",".",1]
["09.017","Gouldamadine blauw EF pastel wit- en lilaborst",null,null,"09.",".",1]
["09.018","Gouldamadine blauw DF pastel mutant combinatie",null,null,"09.",".",1]
["09.019","Gouldamadine SL ino  serie",null,null,"09.",".",1]
["09.030","Gouldamadine alle kop- en borstkleuren nieuwe mutant combinatie m/p",null,null,"09.",".",1]
["10.001","Gordelgrasvinken wildkleur",null,null,"10.",".",1]
["10.002","Gordelgrasvinken mutanten",null,null,"10.",".",1]
["10.003","Zwartstuit gordelgrasvink wildkleur",null,null,"10.",".",1]
["10.004","Niet genoemde mutaties zwartstuitgordelgrasvink",null,null,"10.",".",1]
["10.005","Geelsnavel spitsstaartamadine wildkleur",null,null,"10.",".",1]
["10.006","Geelsnavel spitsstaartamadine mutanten",null,null,"10.",".",1]
["10.007","Roodsnavel spitsstaartamadine wildkleur",null,null,"10.",".",1]
["10.008","Roodsnavel spitsstaartamadine mutanten",null,null,"10.",".",1]
["10.009","Bleeksnavel spitsstaartamadine mutanten",null,null,"10.",".",1]
["10.010","Maskeramadine",null,null,"10.",".",1]
["10.011","Witoormaskeramadine",null,null,"10.",".",1]
["10.012","Bichenow astrilde wildkleur",null,null,"10.",".",1]
["10.013","Bichenow astrilde mutanten",null,null,"10.",".",1]
["10.014","Zwartstuit bichenow astrilde wildkleur",null,null,"10.",".",1]
["10.015","Zwartstuit bichenow astrilde mutanten",null,null,"10.",".",1]
["10.016","Ceresamadine wildkleur",null,null,"10.",".",1]
["10.017","Ceresamadine mutanten",null,null,"10.",".",1]
["10.018","Diamantvink roodsnavel wildkleur",null,null,"10.",".",1]
["10.019","Diamantvink roodsnavel mutanten",null,null,"10.",".",1]
["10.020","Diamantvink oranjesnavel mutanten",null,null,"10.",".",1]
["10.021","Binsenastrilde wildkleur",null,null,"10.",".",1]
["10.022","Binsenastrilde mutanten",null,null,"10.",".",1]
["10.023","Binsenastrilde oranjesnavel mutanten",null,null,"10.",".",1]
["10.024","Zwart- en witbuik zonastrilde wildkleur",null,null,{"$f":"LEFT(A515,3)","v":"10."},{"$f":"RIGHT(E515)","v":"."},{"$f":"IF(F515=\".\",1,0)","v":1}]
["10.025","Zwart- en witbuik zonastrilde wildkleur",null,null,"10.",".",1]
["10.026","Emblema picta wildkleur",null,null,"10.",".",1]
["10.027","Emblema picta mutanten",null,null,"10.",".",1]
["10.028","Dorn astrilde wildkleur",null,null,"10.",".",1]
["10.029","Dorn astrilde mutanten",null,null,"10.",".",1]
["11.001","Driekleurpapegaaiamadine wildkleur",null,null,"11.",".",1]
["11.002","Driekleurpapegaaiamadine mutanten",null,null,"11.",".",1]
["11.003","Roodkoppapegaaiamadine wildkleur",null,null,"11.",".",1]
["11.004","Roodkoppapegaaiamadine mutanten",null,null,"11.",".",1]
["11.005","Forbus papegaaiamadine wildkleur",null,null,"11.",".",1]
["11.006","Forbus papegaaiamadine mutanten",null,null,"11.",".",1]
["11.007","Peales papegaaiamadine wildkleur",null,null,"11.",".",1]
["11.008","Peales papegaaiamadine mutanten",null,null,"11.",".",1]
["11.009","Coloria papegaaiamadine wildkleur",null,null,"11.",".",1]
["11.010","Coloria papegaaiamadine mutanten",null,null,"11.",".",1]
["11.011","Bamboe en lombok papegaaiamadine",null,null,"11.",".",1]
["11.012","Indische nonpareil wildkleur",null,null,"11.",".",1]
["11.013","Indische nonpareil  mutanten",null,null,"11.",".",1]
["11.020","Niet genoemde papegaaiamadine soorten",null,null,"11.",".",1]
["12.020","Rietvinken wildkleur",null,null,"12.",".",1]
["12.021","Rietvinken mutanten",null,null,"12.",".",1]
["12.022","Nonnen wildkleur",null,null,"12.",".",1]
["12.023","Nonnen mutanten",null,null,"12.",".",1]
["12.024","Bronzeman wildkleur",null,null,"12.",".",1]
["12.025","Bronzeman mutanten",null,null,"12.",".",1]
["12.026","Muskaatvink wildkleur",null,null,"12.",".",1]
["12.027","Muskaatvink mutanten",null,null,"12.",".",1]
["12.028","Dwergekstertje",null,null,"12.",".",1]
["13.001","Mexicaanse roodmus wildkleur",null,null,"13.",".",1]
["13.002","Mexicaanse roodmus mutanten",null,null,"13.",".",1]
["13.003","Magellaansijs wildkleur",null,null,"13.",".",1]
["13.004","Magellaansijs mutanten",null,null,"13.",".",1]
["13.005","Kapoetsensijs wildkleur",null,null,"13.",".",1]
["13.006","Kapoetsensijs mutanten",null,null,"13.",".",1]
["13.007","Amadina en ekstertjes wildkleur",null,null,"13.",".",1]
["13.008","Ekstertjes niet genoemde mutaties",null,null,"13.",".",1]
["13.009","Bandvink mutaties",null,null,"13.",".",1]
["13.010","Bandvink oranjeband",null,null,"13.",".",1]
["13.011","Roodkop amadine mutaties",null,null,"13.",".",1]
["13.012","Amandava goudbuikjes kwartel- en bergastrilden",null,null,"13.",".",1]
["13.013","Niet genoemde amandava goudbuikjes kwartel- en bergastrilden",null,null,"13.",".",1]
["13.014","Uraeginthus en estrilda soorten wildkleur",null,null,"13.",".",1]
["13.015","Uraeginthus en estrilda soorten mutanten",null,null,"13.",".",1]
["13.016","Lagonosticta soorten wildkleur",null,null,"13.",".",1]
["13.017","Lagonosticta soorten mutanten",null,null,"13.",".",1]
["13.018","Pyrenestes, spermophaga en nesocharis soorten",null,null,"13.",".",1]
["13.019","Niet genoemde mutaties meesastrilden en zaadkrakers",null,null,"13.",".",1]
["13.020","Druppel- en gestreepte astrilden wildkleur",null,null,"13.",".",1]
["13.021","Druppel- en gestreepte astrilden mutanten",null,null,"13.",".",1]
["13.022","Estrilda en coccopygia soorten wildkleur",null,null,"13.",".",1]
["13.023","Crithagra en cini soorten wildkleur",null,null,"13.",".",1]
["13.024","Serinus soorten wildkleur",null,null,"13.",".",1]
["13.025","Crithagra en serinus soorten niet genoemde mutaties",null,null,"13.",".",1]
["13.026","Wever, staalvink, schubbenkopje en mus soorten",null,null,"13.",".",1]
["13.027","Wever,staalvink, schubbenkopje en mus mutanten",null,null,"13.",".",1]
["13.028","Paapjes, kroon- , kleur- en cubavinken etc.",null,null,"13.",".",1]
["13.029","Paapjes, kroon- , kleur- en cubavinken etc.",null,null,"13.",".",1]
["13.030","Uitheemse gorzen, roodmus, groenling en goudvinken",null,null,"13.",".",1]
["13.031","Zwartkopgroenling mutanten",null,null,"13.",".",1]
["13.032","Amerikaanse sijzen wildkleur",null,null,"13.",".",1]
["13.033","Bisschoppen wildkleur",null,null,"13.",".",1]
["13.034","Kardinalen wildkleur",null,null,"13.",".",1]
["13.035","Kernbijters wildkleur",null,null,"13.",".",1]
["13.036","Appelvinken en haakbekken wildkleur",null,null,"13.",".",1]
["13.037","Wida soorten wildkleur",null,null,{"$f":"LEFT(A580,3)","v":"13."},{"$f":"RIGHT(E580)","v":"."},{"$f":"IF(F580=\".\",1,0)","v":1}]
["14.001","Hybriden met Exoten bloed",null,null,"14.",".",1]
["14.002","Hybriden kanarie x Exoot",null,null,"14.",".",1]
["14.003","Hybriden Europese vogel x exoot",null,null,"14.",".",1]
["14.004","Hybriden Europese vogel x Kanarie",null,null,"14.",".",1]
["14.005","Hybriden Europees x Europees",null,null,"14.",".",1]
["15.001","Europese kanarie soorten wildkleur",null,null,"15.",".",1]
["15.002","Europese putters wildkleur",null,null,"15.",".",1]
["15.004","Europese groenling wildkleur",null,null,"15.",".",1]
["15.005","Kleine barmsijs wildkleur",null,null,"15.",".",1]
["15.006","Grote barmsijs wildkleur",null,null,"15.",".",1]
["15.007","Witstuit barmsijs wildkleur",null,null,"15.",".",1]
["15.008","Europese sijs wildkleur",null,null,"15.",".",1]
["15.009","Kneu en Frater wildkleur",null,null,"15.",".",1]
["15.010","Europese gorsen wildkleur",null,null,"15.",".",1]
["15.011","Europese mussen wildkleur",null,null,"15.",".",1]
["15.012","Europese roodmus en woestijnvink wildkleur",null,null,"15.",".",1]
["15.013","Vink en keep wildkleur",null,null,"15.",".",1]
["15.014","Kleine goudvink wildkleur",null,null,"15.",".",1]
["15.015","Grote goudvink wildkleur",null,null,"15.",".",1]
["15.016","Kruisbek soorten wildkleur",null,null,"15.",".",1]
["15.017","Appelvink en haakbek wildkleur",null,null,"15.",".",1]
["15.018","Europese cultuur VI soorten 1 wildkleur",null,null,"15.",".",1]
["15.019","Europese cultuur VI soorten 2 wildkleur",null,null,"15.",".",1]
["15.020","Europese cultuur VI soorten 3 wildkleur",null,null,"15.",".",1]
["15.021","Europese cultuur VI soorten 4 wildkleur",null,null,"15.",".",1]
["15.022","Europese cultuur VI soorten 5 wildkleur",null,null,"15.",".",1]
["15.023","Europese cultuur VI soorten 6 wildkleur",null,null,"15.",".",1]
["15.024","Europese kwartel en patrijs soorten",null,null,"15.",".",1]
["15.025","Europese duiven soorten",null,null,"15.",".",1]
["16.001","Europese grote putter mutanten",null,null,"16.",".",1]
["16.002","Europese groenling mutanten",null,null,"16.",".",1]
["16.003","Kleine barmsijs mutanten",null,null,"16.",".",1]
["16.004","Grote barmsijs mutanten",null,null,"16.",".",1]
["16.005","Europese sijs mutanten",null,null,"16.",".",1]
["16.006","Kneu en frater mutanten",null,null,"16.",".",1]
["16.007","Europese mus mutanten",null,null,"16.",".",1]
["16.008","Europese vink mutanten",null,null,"16.",".",1]
["16.009","Europese grote goudvink mutanten",null,null,"16.",".",1]
["16.010","Europese spreeuw mutanten",null,null,"16.",".",1]
["16.011","Europese merel mutanten",null,null,"16.",".",1]
["16.012","Europese merel mutanten",null,null,"16.",".",1]
["16.013","Europese ekster en gaai mutanten",null,null,"16.",".",1]
["16.014","Europese patrijs mutanten",null,null,"16.",".",1]
["17.001","Tropische VI soorten 1",null,null,"17.",".",1]
["17.002","Tropische VI soorten 2",null,null,"17.",".",1]
["17.003","Tropische VI soorten 3",null,null,"17.",".",1]
["17.004","Tropische VI soorten 4",null,null,"17.",".",1]
["17.005","Tropische VI soorten 5",null,null,"17.",".",1]
["17.006","Tropische VI soorten 6",null,null,"17.",".",1]
["17.007","Tropische VI soorten 7",null,null,"17.",".",1]
["17.008","Tropische VI soorten 8",null,null,"17.",".",1]
["17.009","Tropische VI soorten 9",null,null,"17.",".",1]
["17.010","Tropische VI soorten 10",null,null,"17.",".",1]
["17.011","Tropische VI soorten 11",null,null,"17.",".",1]
["17.012","Tropische VI soorten 12",null,null,"17.",".",1]
["17.013","Tropische VI soorten 13",null,null,"17.",".",1]
["17.014","Tropische VI soorten 14",null,null,"17.",".",1]
["17.015","Tropische VI soorten 15",null,null,"17.",".",1]
["17.016","Tropische VI soorten 16",null,null,"17.",".",1]
["17.017","Tropische VI soorten 17",null,null,"17.",".",1]
["17.018","Tropische VI soorten 18",null,null,"17.",".",1]
["17.019","Tropische VI soorten 19",null,null,"17.",".",1]
["17.020","Tropische VI soorten 20",null,null,"17.",".",1]
["17.021","Tropische VI soorten 21",null,null,{"$f":"LEFT(A644,3)","v":"17."},{"$f":"RIGHT(E644)","v":"."},{"$f":"IF(F644=\".\",1,0)","v":1}]
["17.022","Tropische VI soorten 22",null,null,"17.",".",1]
["17.023","Tropische VI soorten 23",null,null,"17.",".",1]
["17.024","Tropische VI soorten 24",null,null,"17.",".",1]
["17.025","Tropische VI soorten 25",null,null,"17.",".",1]
["17.026","Tropische VI soorten 26",null,null,"17.",".",1]
["17.027","Tropische VI soorten 27",null,null,"17.",".",1]
["17.028","Tropische VI soorten 28",null,null,"17.",".",1]
["17.029","Tropische VI soorten 29",null,null,"17.",".",1]
["17.030","Tropische VI soorten 30",null,null,"17.",".",1]
["17.031","Tropische VI soorten 31",null,null,"17.",".",1]
["18.001","Standaard grasparkiet groen",null,null,"18.",".",1]
["18.002","Standaard grasparkiet mutanten groen serie",null,null,"18.",".",1]
["18.003","Standaard grasparkiet aqua, turquoise en geelmasker serie",null,null,"18.",".",1]
["18.004","Standaard grasparkiet blauw serie",null,null,"18.",".",1]
["18.005","Standaard grasparkiet cinnamon serie",null,null,"18.",".",1]
["18.006","Standaard grasparkiet pallid serie",null,null,"18.",".",1]
["18.007","Standaard grasparkiet SL ino serie",null,null,"18.",".",1]
["18.008","Standaard grasparkiet cinnamon-ino serie",null,null,"18.",".",1]
["18.009","Standaard grasparkiet EF spangle en cleartail serie",null,null,"18.",".",1]
["18.010","Standaard grasparkiet grijsvleugel serie",null,null,"18.",".",1]
["18.011","Standaard grasparkiet blankvleugel serie",null,null,"18.",".",1]
["18.012","Standaard grasparkiet dilute serie",null,null,"18.",".",1]
["18.013","Standaard grasparkiet bronze- en pale fallow serie",null,null,"18.",".",1]
["18.014","Standaard grasparkiet dom. bont , klaarpen en hollands bont serie",null,null,"18.",".",1]
["18.015","Standaard grasparkiet Recessief bont alle kleurslagen incl. opaline en/ of cinnamon)",null,null,"18.",".",1]
["18.016","Standaard grasparkiet opaline groen serie",null,null,"18.",".",1]
["18.017","Standaard grasparkiet opaline aqua , turquoise en geelmasker serie",null,null,"18.",".",1]
["18.018","Standaard grasparkiet opaline blauw serie",null,null,"18.",".",1]
["18.019","Standaard grasparkiet opaline-cinnamon serie",null,null,"18.",".",1]
["18.020","Standaard grasparkiet opaline-pallid serie",null,null,"18.",".",1]
["18.021","Standaard grasparkiet opaline grijs- , blank- en dilute serie",null,null,"18.",".",1]
["18.022","Standaard grasparkiet opaline fallow en EF spangle serie",null,null,"18.",".",1]
["18.023","Standaard grasparkiet DF spangle en DEC serie",null,null,"18.",".",1]
["18.024","Standaard grasparkiet alle kuif vormen",null,null,"18.",".",1]
["18.025","St.graspark.easley clearbody, saddleback, blackwing, antraciet en slate (incl.opal.)serie",null,null,"18.",".",1]
["19.001","Kleur grasparkiet groen",null,null,"19.",".",1]
["19.002","Kleur grasparkiet mutanten groen serie",null,null,"19.",".",1]
["19.003","Kleur grasparkiet aqua, turquoise en geelmasker serie",null,null,"19.",".",1]
["19.004","Kleur grasparkiet blauw serie",null,null,"19.",".",1]
["19.005","Kleur grasparkiet cinnamon serie",null,null,"19.",".",1]
["19.006","Kleur grasparkiet pallid serie",null,null,"19.",".",1]
["19.007","Kleur grasparkiet SL ino serie",null,null,"19.",".",1]
["19.008","Kleur grasparkiet cinnamon-ino serie",null,null,"19.",".",1]
["19.009","Kleur grasparkiet EF spangle en cleartail serie",null,null,"19.",".",1]
["19.010","Kleur grasparkiet grijsvleugel serie",null,null,"19.",".",1]
["19.011","Kleur grasparkiet blankvleugel serie",null,null,"19.",".",1]
["19.012","Kleur grasparkiet dilute serie",null,null,"19.",".",1]
["19.013","Kleur grasparkiet bronze- en pale fallow serie",null,null,"19.",".",1]
["19.014","Kleur grasparkiet klaarpen dom.-, hollands- en rec. bont serie",null,null,"19.",".",1]
["19.015","Kleur grasparkiet Recessief bont alle kleurslagen incl. opaline en/ of cinnamon)",null,null,"19.",".",1]
["19.016","Kleurgrasparkiet opaline groen serie",null,null,"19.",".",1]
["19.017","Kleurgrasparkiet opaline aqua, turquoise en geelmasker serie",null,null,"19.",".",1]
["19.018","Kleurgrasparkiet opaline blauw serie",null,null,"19.",".",1]
["19.019","Kleur grasparkiet opaline-cinnamon serie",null,null,"19.",".",1]
["19.020","Kleur grasparkiet opaline-pallid serie",null,null,"19.",".",1]
["19.021","Kleur grasparkiet opaline grijs-, blankvleugel en dilute serie",null,null,"19.",".",1]
["19.022","Kleur grasparkiet opaline fallow en EF spangle serie",null,null,"19.",".",1]
["19.023","Kleur grasparkiet DF spangle en DEC serie",null,null,"19.",".",1]
["19.024","Kleur grasparkiet alle kuif vormen",null,null,"19.",".",1]
["19.025","Kl.graspark.easley clearbody, saddleback, blackwing, antraciet en slate (incl.opal.)serie",null,null,"19.",".",1]
["20.001","Grijsrugdwergpapegaai groen serie",null,null,"20.",".",1]
["20.002","Grijsrugdwergpapegaai mutanten groen serie",null,null,"20.",".",1]
["20.003","Grijsrugdwergpapegaai turquoise serie",null,null,"20.",".",1]
["20.004","Grijsrugdwergpapegaai blauw serie",null,null,{"$f":"LEFT(A708,3)","v":"20."},{"$f":"RIGHT(E708)","v":"."},{"$f":"IF(F708=\".\",1,0)","v":1}]
["20.005","Grijsrugdwergpapegaai rec. grijs serie",null,null,"20.",".",1]
["20.006","Grijsrugdwergpapegaai cinnamon serie",null,null,"20.",".",1]
["20.007","Grijsrugdwergpapegaai yellam serie",null,null,"20.",".",1]
["20.008","Grijsrugdwergpapegaai marbled serie",null,null,"20.",".",1]
["20.009","Grijsrugdwergpapegaai fallow serie",null,null,"20.",".",1]
["20.010","Grijsrugdwergpapegaai misty serie",null,null,"20.",".",1]
["20.011","Grijsrugdwergpapegaai faded serie",null,null,"20.",".",1]
["20.012","Grijsrugdwergpapegaai NSL ino serie",null,null,"20.",".",1]
["20.013","Grijsrugdwergpapegaai dominant- en recessief bont serie",null,null,"20.",".",1]
["20.014","Groenstuitdwergpapegaai groen",null,null,"20.",".",1]
["20.015","Groenstuitdwergpapegaai mutanten",null,null,"20.",".",1]
["20.016","Prachtdwergpapegaai groen",null,null,"20.",".",1]
["20.017","Oogringdwergpapegaai  groen",null,null,"20.",".",1]
["20.018","Oogringdwergpapegaai mutanten",null,null,"20.",".",1]
["20.019","Overige forpus dwergpapegaaien",null,null,"20.",".",1]
["21.101","Agapornis roseicollis groen",null,null,"21.",".",1]
["21.102","Agapornis roseicollis mutanten groen serie",null,null,"21.",".",1]
["21.103","Agapornis roseicollis aqua en turquoise serie",null,null,"21.",".",1]
["21.104","Agapornis roseicollis blauw serie",null,null,"21.",".",1]
["21.105","Agapornis roseicollis cinnamon serie",null,null,"21.",".",1]
["21.106","Agapornis roseicollis pallid serie",null,null,"21.",".",1]
["21.107","Agapornis roseicollis SL ino serie",null,null,"21.",".",1]
["21.108","Agapornis roseicollis dilute serie",null,null,"21.",".",1]
["21.109","Agapornis roseicollis marbled serie",null,null,"21.",".",1]
["21.110","Agapornis roseicollis jade serie",null,null,"21.",".",1]
["21.111","Agapornis roseicollis bronze fallow serie",null,null,"21.",".",1]
["21.112","Agapornis roseicollis pale fallow serie",null,null,"21.",".",1]
["21.113","Agapornis roseicollis misty serie",null,null,"21.",".",1]
["21.114","Agapornis roseicollis pale headed serie",null,null,"21.",".",1]
["21.115","Agapornis roseicollis oranjemasker serie",null,null,"21.",".",1]
["21.116","Agapornis roseicollis opaline serie",null,null,"21.",".",1]
["21.117","Agapornis roseicollis opaline-cinnamon serie",null,null,"21.",".",1]
["21.118","Agapornis roseicollis opaline-pallid serie",null,null,"21.",".",1]
["21.119","Agapornis roseicollis opaline-SL ino serie",null,null,"21.",".",1]
["21.120","Agapornis roseicollis opaline dilute serie",null,null,"21.",".",1]
["21.121","Agapornis roseicollis opaline marbled serie",null,null,"21.",".",1]
["21.122","Agapornis roseicollis opaline bronze fallow serie",null,null,"21.",".",1]
["21.123","Agapornis roseicollis opaline pale fallow serie",null,null,"21.",".",1]
["21.124","Agapornis roseicollis opaline misty serie",null,null,"21.",".",1]
["21.125","Agapornis roseicollis opaline oranjemasker serie",null,null,"21.",".",1]
["21.126","Agapornis roseicollis recessief bont en dominant bont serie",null,null,"21.",".",1]
["21.201","Agapornis lilianae groen",null,null,"21.",".",1]
["21.202","Agapornis lilianae mutanten groen serie",null,null,"21.",".",1]
["21.203","Agapornis lilianae turquoise serie",null,null,"21.",".",1]
["21.204","Agapornis lilianae blauw serie",null,null,"21.",".",1]
["21.205","Agapornis lilianae EF gezoomd serie",null,null,"21.",".",1]
["21.206","Agapornis lilianae DF gezoomd serie",null,null,"21.",".",1]
["21.207","Agapornis lilianae pastel serie",null,null,"21.",".",1]
["21.208","Agapornis lilianae dilute serie",null,null,"21.",".",1]
["21.209","Agapornis lilianae EF euwing serie",null,null,"21.",".",1]
["21.210","Agapornis lilianae misty serie",null,null,"21.",".",1]
["21.211","Agapornis lilianae dec serie",null,null,"21.",".",1]
["21.212","Agapornis lilianae NSL ino serie",null,null,"21.",".",1]
["21.213","Agapornis lilianae recessief bont en dominant bont serie",null,null,"21.",".",1]
["21.214","Agapornis lilianae opaline mutaties en combinaties",null,null,"21.",".",1]
["21.301","Agapornis nigrigenis groen",null,null,"21.",".",1]
["21.302","Agapornis nigrigenis mutanten groen serie",null,null,"21.",".",1]
["21.303","Agapornis nigrigenis mutanten turquoise serie",null,null,"21.",".",1]
["21.304","Agapornis nigrigenis mutanten blauw serie",null,null,"21.",".",1]
["21.305","Agapornis nigrigenis mutanten EF gezoomd serie",null,null,"21.",".",1]
["21.306","Agapornis nigrigenis mutanten DF gezoomd serie",null,null,"21.",".",1]
["21.307","Agapornis nigrigenis mutanten pastel serie",null,null,"21.",".",1]
["21.308","Agapornis nigrigenis mutanten dilute serie",null,null,"21.",".",1]
["21.309","Agapornis nigrigenis mutanten EF euwing serie",null,null,{"$f":"LEFT(A772,3)","v":"21."},{"$f":"RIGHT(E772)","v":"."},{"$f":"IF(F772=\".\",1,0)","v":1}]
["21.310","Agapornis nigrigenis mutanten misty serie",null,null,"21.",".",1]
["21.311","Agapornis nigrigenis mutanten dec serie",null,null,"21.",".",1]
["21.312","Agapornis nigrigenis mutanten NSL ino serie",null,null,"21.",".",1]
["21.313","Agapornis nigrigenis mutanten Dom. & Rec. bont serie",null,null,"21.",".",1]
["21.314","Agapornis nigrigenis mutanten Dom. & Rec. bont serie",null,null,"21.",".",1]
["21.401","Agapornis fischeri groen",null,null,"21.",".",1]
["21.402","Agapornis fischeri mutanten groen serie",null,null,"21.",".",1]
["21.403","Agapornis fischeri turquoise serie",null,null,"21.",".",1]
["21.404","Agapornis fischeri blauw serie",null,null,"21.",".",1]
["21.405","Agapornis fischeri EF gezoomd serie",null,null,"21.",".",1]
["21.406","Agapornis fischeri DF gezoomd serie",null,null,"21.",".",1]
["21.407","Agapornis fischeri pastel serie",null,null,"21.",".",1]
["21.408","Agapornis fischeri dilute serie",null,null,"21.",".",1]
["21.409","Agapornis fischeri bronze fallow en pale fallow serie",null,null,"21.",".",1]
["21.410","Agapornis fischeri EF euwing serie",null,null,"21.",".",1]
["21.411","Agapornis fischeri misty serie",null,null,"21.",".",1]
["21.412","Agapornis fischeri dec serie",null,null,"21.",".",1]
["21.413","Agapornis fischeri NSL ino serie",null,null,"21.",".",1]
["21.414","Agapornis fischeri recessief bont en dominant bont serie",null,null,"21.",".",1]
["21.415","Agapornis fischeri opaline serie",null,null,"21.",".",1]
["21.416","Agapornis fischeri opaline EF euwing serie",null,null,"21.",".",1]
["21.501","Agapornis personatus groen",null,null,"21.",".",1]
["21.502","Agapornis personatus mutanten groen serie",null,null,"21.",".",1]
["21.503","Agapornis personatus mutanten turquoise serie",null,null,"21.",".",1]
["21.504","Agapornis personatus blauw serie",null,null,"21.",".",1]
["21.505","Agapornis personatus pale serie",null,null,"21.",".",1]
["21.506","Agapornis personatus EF gezoomd serie",null,null,"21.",".",1]
["21.507","Agapornis personatus DF gezoomd serie",null,null,"21.",".",1]
["21.508","Agapornis personatus pastel serie",null,null,"21.",".",1]
["21.509","Agapornis personatus dilute serie",null,null,"21.",".",1]
["21.510","Agapornis personatus bronze fallow , dun fallow en pale fallow serie",null,null,"21.",".",1]
["21.511","Agapornis personatus EF Euwing serie",null,null,"21.",".",1]
["21.512","Agapornis personatus misty serie",null,null,"21.",".",1]
["21.513","Agapornis personatus dec serie",null,null,"21.",".",1]
["21.514","Agapornis personatus NSL ino serie",null,null,"21.",".",1]
["21.515","Agapornis personatus recessief bont en dominant bont serie",null,null,"21.",".",1]
["21.516","Agapornis personatus nieuwe mutaties en combinaties opaline serie",null,null,"21.",".",1]
["21.601","Agapornis taranta groen",null,null,"21.",".",1]
["21.602","Agapornis taranta mutanten groen en turquoise serie",null,null,"21.",".",1]
["21.603","Agapornis taranta bronze- en pale fallow serie",null,null,"21.",".",1]
["21.701","Agapornis pullarius groen",null,null,"21.",".",1]
["21.702","Agapornis pullarius niet genoemde mutaties",null,null,"21.",".",1]
["21.703","Agapornis canus groen",null,null,"21.",".",1]
["21.704","Agapornis canus niet genoemde mutaties man",null,null,"21.",".",1]
["22.001","Catharinaparkiet groen",null,null,"22.",".",1]
["22.002","Catharinaparkiet mutanten groen serie",null,null,"22.",".",1]
["22.003","Catharinaparkiet turquoise serie",null,null,"22.",".",1]
["22.004","Catharinaparkiet blauw serie",null,null,"22.",".",1]
["22.005","Catharinaparkiet pale serie",null,null,"22.",".",1]
["22.006","Catharinaparkiet EF grijsvleugel serie",null,null,"22.",".",1]
["22.007","Catharinaparkiet DF grijsvleugel serie",null,null,"22.",".",1]
["22.008","Catharinaparkiet EF grijsvleugel-SL ino serie",null,null,"22.",".",1]
["22.009","Catharinaparkiet SL ino serie",null,null,"22.",".",1]
["22.010","Catharinaparkiet misty serie",null,null,"22.",".",1]
["22.011","Psilopsiagon- en overige Bolborhynchus soorten",null,null,"22.",".",1]
["22.012","Psilopsiagon- en overige Bolborhynchus mutanten",null,null,"22.",".",1]
["23.001","Bourkeparkiet wildkleur",null,null,"23.",".",1]
["23.002","Bourkeparkiet violet",null,null,"23.",".",1]
["23.003","Bourkeparkiet opaline serie",null,null,"23.",".",1]
["23.004","Bourkeparkiet bronze-, pale fallow en gezoomd serie",null,null,"23.",".",1]
["23.005","Bourkeparkiet SL ino serie",null,null,"23.",".",1]
["23.006","Splendidparkiet groen",null,null,"23.",".",1]
["23.007","Splendidparkiet aqua , turquoise en blauw serie",null,null,"23.",".",1]
["23.008","Splendidparkiet violet serie",null,null,{"$f":"LEFT(A836,3)","v":"23."},{"$f":"RIGHT(E836)","v":"."},{"$f":"IF(F836=\".\",1,0)","v":1}]
["23.009","Splendidparkiet grijs serie",null,null,"23.",".",1]
["23.010","Splendidparkiet cinnamon serie",null,null,"23.",".",1]
["23.011","Splendidparkiet pale serie",null,null,"23.",".",1]
["23.012","Splendidparkiet SL ino serie",null,null,"23.",".",1]
["23.013","Splendidparkiet oranjeborst serie",null,null,"23.",".",1]
["23.014","Splendidparkiet roodbuik serie",null,null,"23.",".",1]
["23.015","Splendidparkiet roodbuik opaline serie",null,null,"23.",".",1]
["23.016","Splendidparkiet roodbuik cinnamon serie",null,null,"23.",".",1]
["23.017","Splendidparkiet roodbuik pale serie",null,null,"23.",".",1]
["23.018","Splendidparkiet roodbuik SL ino serie",null,null,"23.",".",1]
["23.019","Splendidparkiet bont serie",null,null,"23.",".",1]
["23.020","Splendidparkiet opaline serie",null,null,"23.",".",1]
["23.021","Turquoisineparkiet groen",null,null,"23.",".",1]
["23.022","Turquoisineparkiet groen mutanten serie",null,null,"23.",".",1]
["23.023","Turquoisineparkiet cinnamon serie",null,null,"23.",".",1]
["23.024","Turquoisineparkiet dilute serie",null,null,"23.",".",1]
["23.025","Turquoisineparkiet opaline groen serie",null,null,"23.",".",1]
["23.026","Turquoisineparkiet opaline cinnamon serie",null,null,"23.",".",1]
["23.027","Turquoisineparkiet opaline dilute serie",null,null,"23.",".",1]
["23.028","Turquoisineparkiet roodbuik serie",null,null,"23.",".",1]
["23.029","Turquoisineparkiet roodbuik cinnamon serie",null,null,"23.",".",1]
["23.030","Turquoisineparkiet roodbuik dilute serie",null,null,"23.",".",1]
["23.031","Turquoisineparkiet roodbuik opaline serie",null,null,"23.",".",1]
["23.032","Turquoisineparkiet roodbuik opaline-cinnamon serie",null,null,"23.",".",1]
["23.033","Turquoisineparkiet roodbuik opaline dilute serie",null,null,"23.",".",1]
["23.034","Turquoisineparkiet bont serie",null,null,"23.",".",1]
["23.035","Elegantparkiet groen",null,null,"23.",".",1]
["23.036","Elegantparkiet pastel serie",null,null,"23.",".",1]
["23.037","Elegantparkiet grijsvleugel serie",null,null,"23.",".",1]
["23.038","Elegantparkiet bronzefallow serie",null,null,"23.",".",1]
["23.039","Elegantparkiet NSL ino",null,null,"23.",".",1]
["23.040","Elegantparkiet bont",null,null,"23.",".",1]
["23.041","Blauwvleugelparkiet groen",null,null,"23.",".",1]
["23.042","Blauwvleugelparkiet misty groen",null,null,"23.",".",1]
["23.043","Blauwvleugelparkiet nieuwe mutaties en combinaties man",null,null,"23.",".",1]
["24.001","Valkparkiet wildkleur",null,null,"24.",".",1]
["24.002","Valkparkiet bleek- en witmasker serie",null,null,"24.",".",1]
["24.003","Valkparkiet cinnamon serie",null,null,"24.",".",1]
["24.004","Valkparkiet SL ino serie",null,null,"24.",".",1]
["24.005","Valkparkiet dominant gezoomd serie",null,null,"24.",".",1]
["24.006","Valkparkiet bronze fallow serie",null,null,"24.",".",1]
["24.007","Valkparkiet dun fallow serie",null,null,"24.",".",1]
["24.008","Valkparkiet geelwang serie",null,null,"24.",".",1]
["24.009","Valkparkiet opaline serie",null,null,"24.",".",1]
["24.010","Valkparkiet recessief bont serie",null,null,"24.",".",1]
["24.011","Valkparkiet getekend serie",null,null,"24.",".",1]
["25.001","Northiella soorten wildkleur",null,null,"25.",".",1]
["25.002","Psephotellus soorten wildkleur",null,null,"25.",".",1]
["25.003","Goudschouder- en hoodedparkiet mutanten",null,null,"25.",".",1]
["25.004","Veelkleurenparkiet groen",null,null,"25.",".",1]
["25.005","Veelkleurenparkiet mutanten serie",null,null,"25.",".",1]
["25.006","Roodstuitparkiet groen",null,null,"25.",".",1]
["25.007","Roodstuitparkiet mutanten serie",null,null,"25.",".",1]
["25.008","Roodstuitparkiet cinnamon serie",null,null,"25.",".",1]
["25.009","Roodstuitparkiet pallid serie",null,null,"25.",".",1]
["25.010","Roodstuitparkiet SL ino serie",null,null,"25.",".",1]
["25.011","Roodstuitparkiet opaline serie",null,null,"25.",".",1]
["25.012","Roodstuitparkiet opaline-cinnamon serie",null,null,"25.",".",1]
["25.013","Roodstuitparkiet opaline-pallid serie",null,null,"25.",".",1]
["25.014","Roodstuitparkiet opaline-SL ino serie",null,null,"25.",".",1]
["25.015","Roodstuitparkiet oranje serie",null,null,"25.",".",1]
["26.001","Swiftparkiet groen",null,null,"26.",".",1]
["26.002","Swiftparkiet mutanten  serie",null,null,"26.",".",1]
["26.003","Roodvoorhoofd kakariki groen",null,null,{"$f":"LEFT(A900,3)","v":"26."},{"$f":"RIGHT(E900)","v":"."},{"$f":"IF(F900=\".\",1,0)","v":1}]
["26.004","Roodvoorhoofd kakariki  mutanten groen serie",null,null,"26.",".",1]
["26.005","Roodvoorhoofd kakariki turquoise serie",null,null,"26.",".",1]
["26.006","Roodvoorhoofd kakariki cinnamon serie",null,null,"26.",".",1]
["26.007","Roodvoorhoofd kakariki overige mutanten serie",null,null,"26.",".",1]
["26.008","Roodvoorhoofd kakariki recessief en dominant bont serie",null,null,"26.",".",1]
["26.009","Roodvoorhoofd kakariki DEC en SL ino serie",null,null,"26.",".",1]
["26.010","Roodvoorhoofdkakariki nieuwe mutaties en combinaties",null,null,"26.",".",1]
["26.011","Geelvoorhoofd kakariki groen",null,null,"26.",".",1]
["26.012","Geelvoorhoofd kakariki mutanten groen serie",null,null,"26.",".",1]
["26.013","Geelvoorhoofd kakariki turquoise serie",null,null,"26.",".",1]
["26.014","Geelvoorhoofd kakariki cinnamon serie",null,null,"26.",".",1]
["26.015","Geelvoorhoofd kakariki overige mutanten serie",null,null,"26.",".",1]
["26.016","Geelvoorhoofd kakariki recessief en dominant bont serie",null,null,"26.",".",1]
["26.017","Geelvoorhoofd kakariki DEC en SL ino serie",null,null,"26.",".",1]
["26.018","Geelvoorhoofd kakariki nieuwe mutaties en combinaties",null,null,"26.",".",1]
["27.001","Prachtrosella groen serie",null,null,"27.",".",1]
["27.002","Prachtrosella mutanten serie",null,null,"27.",".",1]
["27.003","Pennantrosella wildkleur",null,null,"27.",".",1]
["27.004","Pennantrosella mutanten serie",null,null,"27.",".",1]
["27.005","Stanleyrosella groen serie",null,null,"27.",".",1]
["27.006","Stanleyrosella mutanten serie",null,null,"27.",".",1]
["27.007","Adelaiderosella wildkleur",null,null,"27.",".",1]
["27.008","Adelaiderosella mutanten serie",null,null,"27.",".",1]
["27.009","Overige rosella,s wildkleur",null,null,"27.",".",1]
["27.010","Bleekkoprosella wildkleur",null,null,"27.",".",1]
["27.011","Bleekkoprosella mutanten",null,null,"27.",".",1]
["27.012","Geelbuikrosella groen",null,null,"27.",".",1]
["27.013","Geelbuikrosella mutanten",null,null,"27.",".",1]
["27.014","Strogele rosella groen",null,null,"27.",".",1]
["27.015","Strogele rosella overige mutanten serie",null,null,"27.",".",1]
["27.016","Barnardius soorten groen serie",null,null,"27.",".",1]
["27.017","Barnardius soorten mutanten serie",null,null,"27.",".",1]
["27.018","Cloncurryparkiet groen",null,null,"27.",".",1]
["27.019","Cloncurryparkiet mutanten",null,null,"27.",".",1]
["27.020","Port Lincolnparkiet",null,null,"27.",".",1]
["27.021","Twenty eightparkiet groen",null,null,"27.",".",1]
["27.022","Twenty eightparkiet mutanten",null,null,"27.",".",1]
["27.023","Barrabandparkiet groen",null,null,"27.",".",1]
["27.024","Barrabandparkiet mutanten",null,null,"27.",".",1]
["27.025","Bergparkiet groen",null,null,"27.",".",1]
["27.026","Bergparkiet mutanten serie",null,null,"27.",".",1]
["27.027","Prinses van Wales parkiet groen serie",null,null,"27.",".",1]
["27.028","Prinses van Wales parkiet mutanten serie",null,null,"27.",".",1]
["27.029","Hoorn-, Roodkap en niet genoemde Aust. Parkiet soorten",null,null,"27.",".",1]
["27.030","Roodvleugelparkiet groen serie",null,null,"27.",".",1]
["27.031","Roodvleugelparkiet mutanten serie",null,null,"27.",".",1]
["27.032","Australische koningsparkiet groen serie",null,null,"27.",".",1]
["27.033","Australische koningsparkiet mutanten serie",null,null,"27.",".",1]
["27.034","Ambon koningsparkiet",null,null,"27.",".",1]
["27.035","Groenvleugel koningsparkiet",null,null,"27.",".",1]
["27.036","Koningsparkiet niet genoemde soorten",null,null,"27.",".",1]
["28.001","Halsbandparkiet groen serie",null,null,"28.",".",1]
["28.002","Halsbandparkiet mutanten groen serie",null,null,"28.",".",1]
["28.003","Halsbandparkiet mutanten grijs serie",null,null,"28.",".",1]
["28.004","Halsbandparkiet aqua en turquoise serie",null,null,"28.",".",1]
["28.005","Halsbandparkiet blauw serie",null,null,"28.",".",1]
["28.006","Halsbandparkiet cinnamon serie",null,null,"28.",".",1]
["28.007","Halsbandparkiet opaline serie",null,null,"28.",".",1]
["28.008","Halsbandparkiet recessief en dominant bont serie",null,null,"28.",".",1]
["28.009","Halsbandparkiet bronze fallow serie",null,null,"28.",".",1]
["28.010","Halsbandparkiet bleekkop fallow serie",null,null,"28.",".",1]
["28.011","Halsbandparkiet dominant gezoomd serie",null,null,"28.",".",1]
["28.012","Halsbandparkiet pallid serie",null,null,"28.",".",1]
["28.013","Halsbandparkiet bleekstaart serie",null,null,{"$f":"LEFT(A964,3)","v":"28."},{"$f":"RIGHT(E964)","v":"."},{"$f":"IF(F964=\".\",1,0)","v":1}]
["28.014","Halsbandparkiet dilute serie",null,null,"28.",".",1]
["28.015","Halsbandparkiet SL ino serie",null,null,"28.",".",1]
["28.016","Overige Psittacula soorten wildkleur",null,null,"28.",".",1]
["28.017","Indische rozeborstbaardparkiet mutanten serie",null,null,"28.",".",1]
["28.018","Pruimkopparkiet groen",null,null,"28.",".",1]
["28.019","Pruimkopparkiet mutanten enkelvoudig serie",null,null,"28.",".",1]
["28.020","Pruimkopparkiet opaline serie",null,null,"28.",".",1]
["28.021","Pruimkopparkiet pastel serie",null,null,"28.",".",1]
["28.022","Pruimkopparkiet dilute serie",null,null,"28.",".",1]
["28.023","Pruimkopparkiet SL ino serie",null,null,"28.",".",1]
["28.024","Grote Psittacula soorten wildkleur",null,null,"28.",".",1]
["28.025","Grote Psittacula soorten mutanten serie",null,null,"28.",".",1]
["29.001","Brotogeris- en overige soorten",null,null,"29.",".",1]
["29.002","Brotogeris- en overige soorten mutanten",null,null,"29.",".",1]
["29.003","Muisparkiet (Monniksparkiet) groen",null,null,"29.",".",1]
["29.004","Muisparkiet mutanten mutanten groen serie",null,null,"29.",".",1]
["29.005","Muisparkiet mutanten aqua, turquoise en blauw serie",null,null,"29.",".",1]
["29.006","Muisparkiet mutanten pallid serie",null,null,"29.",".",1]
["29.007","Muisparkiet mutanten opaline serie",null,null,"29.",".",1]
["29.008","Muisparkiet mutanten ino serie",null,null,"29.",".",1]
["29.009","Eupsittula soorten",null,null,"29.",".",1]
["29.010","Eupsittula soorten niet genoemde mutaties",null,null,"29.",".",1]
["29.011","Aratinga, Psittacara en overige soorten soorten",null,null,"29.",".",1]
["29.012","Grote aratinga en grote psittacara soorten mutanten",null,null,"29.",".",1]
["30.001","Pyrrhura groen",null,null,"30.",".",1]
["30.002","Pyrrhura mutanten",null,null,"30.",".",1]
["31.001","Lori groep 1 Breedstaart soorten",null,null,"31.",".",1]
["31.002","Lori groep 2 Grote soorten",null,null,"31.",".",1]
["31.003","Lori groep 3 Trichoglossus en Psitteuteles soorten",null,null,"31.",".",1]
["31.004","Lori groep 4 overige lori soorten",null,null,"31.",".",1]
["31.005","Lori groep 5 kleine lori soorten",null,null,"31.",".",1]
["31.006","Lori groep 6 kleine lori soorten",null,null,"31.",".",1]
["31.007","Vijgpapegaaien",null,null,"31.",".",1]
["31.008","Lori mutanten",null,null,"31.",".",1]
["31.009","Hangparkiet mutanten",null,null,"31.",".",1]
["31.010","Vijgpapegaaien mutanten",null,null,"31.",".",1]
["32.001","Caique soorten",null,null,"32.",".",1]
["32.002","Pionus soorten",null,null,"32.",".",1]
["32.003","Afrikaanse papegaaien 1",null,null,"32.",".",1]
["32.004","Afrikaanse papegaaien 2",null,null,"32.",".",1]
["32.005","Edelpapegaaien soorten",null,null,"32.",".",1]
["32.006","Amazone papegaaien",null,null,"32.",".",1]
["32.007","Kakatoe soorten",null,null,"32.",".",1]
["32.008","Ara soorten",null,null,"32.",".",1]
["33.001","Chinese dwergkwartel wildkleur",null,null,"33.",".",1]
["33.002","Chinese dwergkwartel mutant enkelvoudig",null,null,"33.",".",1]
["33.003","Chinese dwergkwartel mutant meervoudig",null,null,"33.",".",1]
["33.004","Overige kwartels 1 wildkleur",null,null,"33.",".",1]
["33.005","Overige kwartels 1 mutanten",null,null,"33.",".",1]
["33.006","Japanse kwartel wildkleur",null,null,"33.",".",1]
["33.007","Japanse kwartel mutant enkelvoudig",null,null,"33.",".",1]
["33.008","Japanse kwartel mutant meervoudig",null,null,"33.",".",1]
["33.009","Overige kwartels 2 wildkleur",null,null,"33.",".",1]
["33.010","Overige kwartels 2 mutanten",null,null,"33.",".",1]
["33.011","Vechtkwartel",null,null,"33.",".",1]
["33.012","Overige grondvogels wildkleur",null,null,"33.",".",1]
["33.013","Niet genoemde overige grondvogels",null,null,"33.",".",1]
["33.014","Rallen en tinamoes",null,null,"33.",".",1]
["34.001","Diamantduif wildkleur",null,null,"34.",".",1]
["34.002","Diamantduif mutanten",null,null,"34.",".",1]
["34.003","Diamantduif witstuit mutanten",null,null,"34.",".",1]
["34.004","Overige duivensoorten 1 wildkleur",null,null,"34.",".",1]
["34.005","Overige duivensoorten 1 mutanten",null,null,"34.",".",1]
["34.006","Overige duivensoorten 2 wildkleur",null,null,{"$f":"LEFT(A1028,3)","v":"34."},{"$f":"RIGHT(E1028)","v":"."},{"$f":"IF(F1028=\".\",1,0)","v":1}]
["34.007","Overige duivensoorten 3 wildkleur",null,null,"34.",".",1]
["34.008","Overige duivensoorten 4 wildkleur",null,null,"34.",".",1]
["34.009","Overige duivensoorten 5 wildkleur",null,null,"34.",".",1]
["34.010","Overige duivensoorten 5 mutanten",null,null,"34.",".",1]
["34.011","Vruchtenduiven wildkleur",null,null,"34.",".",1]
["34.012","Vruchtenduiven mutaties",null,null,"34.",".",1]
["34.013","Lachduif wildkleur",null,null,"34.",".",1]
["34.014","Lachduif mutanten 1 enkelvoudig",null,null,"34.",".",1]
["34.015","Lachduif mutanten 2 meervoudig",null,null,"34.",".",1]
[null,null,null,null,"","",0]
[null,null,null,null,"","",0]
[null,null,null,null,"","",0]
[null,null,null,null,"","",0]
[null,null,null,null,"","",0]
[null,null,null,null,"","",0]
[null,null,null,null,"","",0]
[null,null,null,null,"","",0]
[null,null,null,null,"","",0]
[null,null,null,null,"","",0]
[null,null,null,null,"","",0]
[null,null,null,null,"","",0]
[null,null,null,null,"","",0]
[null,null,null,null,"","",0]
[null,null,null,null,"","",0]